[Event "Titled Tuesday Blitz March 22 Early 2022"]
[White "Molina, Roberto Junio Brito"]
[Black "Matlakov, Maxim"]
[WhiteFideId "2109450"]
[BlackFideId "4168003"]
[WhiteElo "2432"]
[BlackElo "2669"]
[Result "0-1"]
[Round "11"]
[TimeControl "180+1"]
[Date "2022.03.22"]
[WhiteClock "0:00:07"]
[BlackClock "0:01:41"]

1. d4 {[%clk 0:03:00]}  d5 {[%clk 0:02:56]} 2. Nf3 {[%clk 0:03:00]}  Nf6 {[%clk 0:02:56]} 3. e3 {[%clk 0:02:59]}  Bg4 {[%clk 0:02:54]} 4. c4 {[%clk 0:02:57]}  dxc4 {[%clk 0:02:46]} 5. Bxc4 {[%clk 0:02:56]}  e6 {[%clk 0:02:46]} 6. Qb3 {[%clk 0:02:55]}  Bxf3 {[%clk 0:02:44]} 7. gxf3 {[%clk 0:02:56]}  c5 {[%clk 0:02:44]} 8. Qxb7 {[%clk 0:02:51]}  Nbd7 {[%clk 0:02:43]} 9. dxc5 {[%clk 0:02:51]}  Bxc5 {[%clk 0:02:42]} 10. Nc3 {[%clk 0:02:45]}  Rb8 {[%clk 0:02:41]} 11. Qa6 {[%clk 0:02:43]}  O-O {[%clk 0:02:41]} 12. Be2 {[%clk 0:02:39]}  Nd5 {[%clk 0:02:39]} 13. Nxd5 {[%clk 0:02:34]}  exd5 {[%clk 0:02:40]} 14. Qd3 {[%clk 0:02:19]}  Ne5 {[%clk 0:02:39]} 15. Qd1 {[%clk 0:02:17]}  Qh4 {[%clk 0:02:37]} 16. h3 {[%clk 0:02:13]}  d4 {[%clk 0:02:34]} 17. f4 {[%clk 0:02:11]}  dxe3 {[%clk 0:02:33]} 18. Rh2 {[%clk 0:01:56]}  Rfd8 {[%clk 0:02:27]} 19. Qc2 {[%clk 0:01:54]}  Qxf4 {[%clk 0:02:08]} 20. Rg2 {[%clk 0:01:44]}  Nf3+ {[%clk 0:02:07]} 21. Kf1 {[%clk 0:01:38]}  Nh4 {[%clk 0:01:46]} 22. Bd3 {[%clk 0:00:10]}  Nxg2 {[%clk 0:01:42]} 23. Bxh7+ {[%clk 0:00:07]}  Kh8 {[%clk 0:01:41]} 0-1


[Site "https://www.chess.com"]

[Event "Titled Tuesday Blitz March 22 Early 2022"]
[White "Nenezic, Marko"]
[Black "Vlassov, Nikolai"]
[WhiteFideId "912123"]
[BlackFideId "4103360"]
[WhiteElo "2457"]
[BlackElo "2407"]
[Result "1-0"]
[Round "11"]
[TimeControl "180+1"]
[Date "2022.03.22"]
[WhiteClock "0:00:58"]
[BlackClock "0:00:57"]

1. d4 {[%clk 0:02:58]}  Nf6 {[%clk 0:02:57]} 2. c4 {[%clk 0:02:58]}  Nc6 {[%clk 0:02:56]} 3. Nf3 {[%clk 0:02:58]}  e6 {[%clk 0:02:56]} 4. a3 {[%clk 0:02:58]}  d5 {[%clk 0:02:56]} 5. Bg5 {[%clk 0:02:56]}  dxc4 {[%clk 0:02:55]} 6. e3 {[%clk 0:02:54]}  b5 {[%clk 0:02:36]} 7. a4 {[%clk 0:02:48]}  Ba6 {[%clk 0:02:33]} 8. axb5 {[%clk 0:02:42]}  Bxb5 {[%clk 0:02:33]} 9. Nc3 {[%clk 0:02:39]}  a6 {[%clk 0:02:32]} 10. Bxf6 {[%clk 0:02:22]}  gxf6 {[%clk 0:02:30]} 11. Nd2 {[%clk 0:02:23]}  Rg8 {[%clk 0:02:23]} 12. Bxc4 {[%clk 0:02:14]}  Bxc4 {[%clk 0:02:06]} 13. Nxc4 {[%clk 0:02:15]}  Bb4 {[%clk 0:02:06]} 14. Qf3 {[%clk 0:01:59]}  Qd5 {[%clk 0:01:57]} 15. Qxd5 {[%clk 0:01:57]}  exd5 {[%clk 0:01:57]} 16. Nd2 {[%clk 0:01:48]}  Bxc3 {[%clk 0:01:57]} 17. bxc3 {[%clk 0:01:48]}  Rxg2 {[%clk 0:01:58]} 18. Ke2 {[%clk 0:01:39]}  a5 {[%clk 0:01:49]} 19. c4 {[%clk 0:01:38]}  dxc4 {[%clk 0:01:45]} 20. Nxc4 {[%clk 0:01:38]}  a4 {[%clk 0:01:40]} 21. Kf3 {[%clk 0:01:34]}  Rg5 {[%clk 0:01:38]} 22. Rhc1 {[%clk 0:01:35]}  Kd7 {[%clk 0:01:37]} 23. Nd2 {[%clk 0:01:33]}  f5 {[%clk 0:01:25]} 24. Ra3 {[%clk 0:01:25]}  Rh5 {[%clk 0:01:23]} 25. Rac3 {[%clk 0:01:13]}  Ra6 {[%clk 0:01:22]} 26. Ke2 {[%clk 0:01:13]}  Rxh2 {[%clk 0:01:20]} 27. Nf3 {[%clk 0:01:08]}  Rg2 {[%clk 0:01:17]} 28. Rxc6 {[%clk 0:01:07]}  Rxc6 {[%clk 0:01:16]} 29. Ne5+ {[%clk 0:01:08]}  Kc8 {[%clk 0:01:13]} 30. Rxc6 {[%clk 0:01:06]}  Rg1 {[%clk 0:01:07]} 31. Ra6 {[%clk 0:01:03]}  Ra1 {[%clk 0:01:05]} 32. Nd3 {[%clk 0:00:59]}  h5 {[%clk 0:01:03]} 33. Nc5 {[%clk 0:00:58]}  Kd8 {[%clk 0:00:57]} 34. Rxa4 {[%clk 0:00:58]} 1-0


[Site "https://www.chess.com"]

[Event "Titled Tuesday Blitz March 22 Early 2022"]
[White "Nepomniachtchi, Ian"]
[Black "Martinez Alcantara, Jose Eduardo"]
[WhiteFideId "4168119"]
[BlackFideId "3805662"]
[WhiteElo "2740"]
[BlackElo "2690"]
[Result "1-0"]
[Round "11"]
[TimeControl "180+1"]
[Date "2022.03.22"]
[WhiteClock "0:00:36"]
[BlackClock "0:00:03"]

1. e4 {[%clk 0:03:00]}  e5 {[%clk 0:02:55]} 2. f4 {[%clk 0:03:00]}  exf4 {[%clk 0:02:54]} 3. Nf3 {[%clk 0:03:00]}  g5 {[%clk 0:02:48]} 4. h4 {[%clk 0:02:59]}  g4 {[%clk 0:02:39]} 5. Ne5 {[%clk 0:02:59]}  d5 {[%clk 0:02:21]} 6. d4 {[%clk 0:02:54]}  Nf6 {[%clk 0:02:11]} 7. Nc3 {[%clk 0:02:51]}  Bb4 {[%clk 0:02:07]} 8. exd5 {[%clk 0:02:42]}  Nxd5 {[%clk 0:02:02]} 9. Bd2 {[%clk 0:02:37]}  Nc6 {[%clk 0:01:28]} 10. Nxd5 {[%clk 0:02:32]}  Qxd5 {[%clk 0:01:18]} 11. Nxc6 {[%clk 0:02:31]}  Bxd2+ {[%clk 0:00:42]} 12. Qxd2 {[%clk 0:02:32]}  Qxc6 {[%clk 0:00:43]} 13. O-O-O {[%clk 0:02:28]}  Bf5 {[%clk 0:00:40]} 14. Re1+ {[%clk 0:02:25]}  Kf8 {[%clk 0:00:38]} 15. Re5 {[%clk 0:02:23]}  Bd7 {[%clk 0:00:14]} 16. Qxf4 {[%clk 0:02:17]}  Re8 {[%clk 0:00:15]} 17. Bb5 {[%clk 0:02:14]}  Qd6 {[%clk 0:00:13]} 18. Rf1 {[%clk 0:02:13]}  Re7 {[%clk 0:00:13]} 19. Bc4 {[%clk 0:02:09]}  Be8 {[%clk 0:00:09]} 20. Kb1 {[%clk 0:02:01]}  h5 {[%clk 0:00:08]} 21. a3 {[%clk 0:01:52]}  Rh6 {[%clk 0:00:06]} 22. Rxe7 {[%clk 0:01:49]}  Kxe7 {[%clk 0:00:07]} 23. Qe4+ {[%clk 0:01:47]}  Kf8 {[%clk 0:00:05]} 24. Qxb7 {[%clk 0:01:47]}  Qxd4 {[%clk 0:00:05]} 25. Qxc7 {[%clk 0:01:47]}  Rf6 {[%clk 0:00:04]} 26. Rxf6 {[%clk 0:01:44]}  Qxf6 {[%clk 0:00:05]} 27. Qxa7 {[%clk 0:01:44]}  Qxh4 {[%clk 0:00:05]} 28. Qc5+ {[%clk 0:01:33]}  Kg8 {[%clk 0:00:05]} 29. Qc8 {[%clk 0:01:30]}  Qe7 {[%clk 0:00:05]} 30. a4 {[%clk 0:01:24]}  Kg7 {[%clk 0:00:04]} 31. b3 {[%clk 0:01:13]}  Bd7 {[%clk 0:00:03]} 32. Qc7 {[%clk 0:01:10]}  h4 {[%clk 0:00:03]} 33. a5 {[%clk 0:01:09]}  g3 {[%clk 0:00:02]} 34. a6 {[%clk 0:01:06]}  Qe1+ {[%clk 0:00:02]} 35. Ka2 {[%clk 0:01:01]}  h3 {[%clk 0:00:03]} 36. Qxd7 {[%clk 0:01:01]}  h2 {[%clk 0:00:03]} 37. Qxf7+ {[%clk 0:01:01]}  Kh6 {[%clk 0:00:02]} 38. Qf6+ {[%clk 0:01:01]}  Kh7 {[%clk 0:00:02]} 39. Qf7+ {[%clk 0:00:52]}  Kh6 {[%clk 0:00:02]} 40. Bd3 {[%clk 0:00:49]}  Kg5 {[%clk 0:00:03]} 41. Qf5+ {[%clk 0:00:48]}  Kh4 {[%clk 0:00:03]} 42. Qf6+ {[%clk 0:00:39]}  Kh5 {[%clk 0:00:02]} 43. Qg6+ {[%clk 0:00:39]}  Kh4 {[%clk 0:00:03]} 44. Bf5 {[%clk 0:00:38]}  Qa5+ {[%clk 0:00:02]} 45. Kb2 {[%clk 0:00:38]}  Qe5+ {[%clk 0:00:02]} 46. c3 {[%clk 0:00:38]}  Qe2+ {[%clk 0:00:03]} 47. Ka3 {[%clk 0:00:37]}  h1=Q {[%clk 0:00:03]} 48. Qf6+ {[%clk 0:00:35]}  Kh5 {[%clk 0:00:04]} 49. Bg6+ {[%clk 0:00:35]}  Kh6 {[%clk 0:00:04]} 50. Bf7+ {[%clk 0:00:35]}  Kh7 {[%clk 0:00:02]} 51. Qg6+ {[%clk 0:00:35]}  Kh8 {[%clk 0:00:03]} 52. Qg8# {[%clk 0:00:36]} 1-0


[Site "https://www.chess.com"]

[Event "Titled Tuesday Blitz March 22 Early 2022"]
[White "Obolentseva, Alexandra"]
[Black "Indjic, Aleksandar"]
[WhiteFideId "24153648"]
[BlackFideId "911925"]
[WhiteElo "2113"]
[BlackElo "2616"]
[Result "0-1"]
[Round "11"]
[TimeControl "180+1"]
[Date "2022.03.22"]
[WhiteClock "0:00:34"]
[BlackClock "0:01:49"]

1. d4 {[%clk 0:02:59]}  Nf6 {[%clk 0:02:59]} 2. c4 {[%clk 0:02:56]}  c5 {[%clk 0:02:59]} 3. d5 {[%clk 0:02:54]}  e6 {[%clk 0:03:00]} 4. Nc3 {[%clk 0:02:53]}  exd5 {[%clk 0:03:00]} 5. cxd5 {[%clk 0:02:54]}  d6 {[%clk 0:03:00]} 6. e4 {[%clk 0:02:54]}  g6 {[%clk 0:03:00]} 7. Nge2 {[%clk 0:02:54]}  h5 {[%clk 0:02:55]} 8. Bg5 {[%clk 0:02:51]}  a6 {[%clk 0:02:53]} 9. a4 {[%clk 0:02:50]}  Nbd7 {[%clk 0:02:48]} 10. Qd2 {[%clk 0:02:27]}  Bg7 {[%clk 0:02:46]} 11. Nf4 {[%clk 0:02:16]}  O-O {[%clk 0:02:40]} 12. Be2 {[%clk 0:02:16]}  Qe8 {[%clk 0:02:40]} 13. f3 {[%clk 0:02:14]}  Nh7 {[%clk 0:02:39]} 14. Bh4 {[%clk 0:02:11]}  g5 {[%clk 0:02:38]} 15. Bxg5 {[%clk 0:02:10]}  Nxg5 {[%clk 0:02:38]} 16. Nxh5 {[%clk 0:02:11]}  Nh7 {[%clk 0:02:37]} 17. Nxg7 {[%clk 0:02:10]}  Kxg7 {[%clk 0:02:38]} 18. h4 {[%clk 0:02:05]}  Qe5 {[%clk 0:02:36]} 19. h5 {[%clk 0:01:55]}  Qg3+ {[%clk 0:02:28]} 20. Kf1 {[%clk 0:01:56]}  Ne5 {[%clk 0:02:27]} 21. Nd1 {[%clk 0:01:33]}  f5 {[%clk 0:02:25]} 22. h6+ {[%clk 0:01:31]}  Kh8 {[%clk 0:02:24]} 23. Nf2 {[%clk 0:01:30]}  fxe4 {[%clk 0:02:18]} 24. Nxe4 {[%clk 0:01:31]}  Qg6 {[%clk 0:02:18]} 25. Nf2 {[%clk 0:01:20]}  Bd7 {[%clk 0:02:08]} 26. Qc3 {[%clk 0:00:55]}  b5 {[%clk 0:02:05]} 27. Nd3 {[%clk 0:00:51]}  b4 {[%clk 0:02:04]} 28. Nxe5 {[%clk 0:00:50]}  dxe5 {[%clk 0:02:03]} 29. Qxe5+ {[%clk 0:00:48]}  Nf6 {[%clk 0:02:03]} 30. Re1 {[%clk 0:00:36]}  Rae8 {[%clk 0:01:59]} 31. Qd6 {[%clk 0:00:36]}  Rg8 {[%clk 0:01:51]} 32. h7 {[%clk 0:00:34]}  Qxg2# {[%clk 0:01:49]} 0-1


[Site "https://www.chess.com"]

[Event "Titled Tuesday Blitz March 22 Early 2022"]
[White "Oganian, Miran"]
[Black "Zhigalko, Sergei"]
[WhiteFideId "4122488"]
[BlackFideId "13502956"]
[WhiteElo "2357"]
[BlackElo "2662"]
[Result "1-0"]
[Round "11"]
[TimeControl "180+1"]
[Date "2022.03.22"]
[WhiteClock "0:00:07"]
[BlackClock "0:00:04"]

1. e4 {[%clk 0:02:58]}  c5 {[%clk 0:02:58]} 2. Nf3 {[%clk 0:02:58]}  Nc6 {[%clk 0:02:59]} 3. c3 {[%clk 0:02:58]}  Nf6 {[%clk 0:02:59]} 4. e5 {[%clk 0:02:58]}  Nd5 {[%clk 0:02:59]} 5. d4 {[%clk 0:02:59]}  cxd4 {[%clk 0:03:00]} 6. cxd4 {[%clk 0:03:00]}  d6 {[%clk 0:03:00]} 7. Bc4 {[%clk 0:03:00]}  Nb6 {[%clk 0:02:59]} 8. Bb3 {[%clk 0:02:59]}  d5 {[%clk 0:02:57]} 9. Nh4 {[%clk 0:02:58]}  e6 {[%clk 0:02:54]} 10. Nf3 {[%clk 0:02:58]}  Be7 {[%clk 0:02:54]} 11. Nc3 {[%clk 0:02:58]}  Bd7 {[%clk 0:02:55]} 12. Be3 {[%clk 0:02:58]}  Rc8 {[%clk 0:02:55]} 13. Nd2 {[%clk 0:02:58]}  Na5 {[%clk 0:02:45]} 14. Qg4 {[%clk 0:02:58]}  g6 {[%clk 0:02:44]} 15. Bh6 {[%clk 0:02:41]}  Nbc4 {[%clk 0:02:36]} 16. Bxc4 {[%clk 0:02:17]}  Nxc4 {[%clk 0:02:36]} 17. Nxc4 {[%clk 0:02:17]}  Rxc4 {[%clk 0:02:37]} 18. O-O {[%clk 0:02:09]}  Qb6 {[%clk 0:02:37]} 19. Ne2 {[%clk 0:02:05]}  Rc2 {[%clk 0:02:03]} 20. Rfc1 {[%clk 0:01:43]}  Rxb2 {[%clk 0:01:50]} 21. a4 {[%clk 0:01:28]}  a5 {[%clk 0:01:46]} 22. Nc3 {[%clk 0:01:24]}  Rb4 {[%clk 0:01:41]} 23. Nb5 {[%clk 0:01:04]}  Bxb5 {[%clk 0:01:07]} 24. Rc8+ {[%clk 0:01:00]}  Bd8 {[%clk 0:01:07]} 25. axb5 {[%clk 0:00:40]}  Qxb5 {[%clk 0:00:26]} 26. h4 {[%clk 0:00:37]}  Kd7 {[%clk 0:00:23]} 27. Ra8 {[%clk 0:00:35]}  Rb1+ {[%clk 0:00:17]} 28. Rxb1 {[%clk 0:00:35]}  Qxb1+ {[%clk 0:00:17]} 29. Kh2 {[%clk 0:00:35]}  Re8 {[%clk 0:00:11]} 30. Qf3 {[%clk 0:00:35]}  Be7 {[%clk 0:00:07]} 31. Rxa5 {[%clk 0:00:31]}  Qe4 {[%clk 0:00:06]} 32. Qb3 {[%clk 0:00:26]}  Rb8 {[%clk 0:00:05]} 33. Qb5+ {[%clk 0:00:20]}  Kd8 {[%clk 0:00:05]} 34. Qb6+ {[%clk 0:00:10]}  Ke8 {[%clk 0:00:04]} 35. Qb5+ {[%clk 0:00:10]}  Kd8 {[%clk 0:00:05]} 36. g3 {[%clk 0:00:08]}  Qxd4 {[%clk 0:00:03]} 37. Be3 {[%clk 0:00:08]}  Qc4 {[%clk 0:00:03]} 38. Bb6+ {[%clk 0:00:07]}  Kc8 {[%clk 0:00:04]} 39. Qe8+ {[%clk 0:00:07]} 1-0


[Site "https://www.chess.com"]

[Event "Titled Tuesday Blitz March 22 Early 2022"]
[White "Omariev, Maksim"]
[Black "Mirzanurov, Bulat"]
[WhiteFideId "4193423"]
[BlackFideId "4184521"]
[WhiteElo "2511"]
[BlackElo "2116"]
[Result "1-0"]
[Round "11"]
[TimeControl "180+1"]
[Date "2022.03.22"]
[WhiteClock "0:00:03"]
[BlackClock "0:00:08"]

1. g4 {[%clk 0:03:00]}  d5 {[%clk 0:02:56]} 2. Bg2 {[%clk 0:03:00]}  c5 {[%clk 0:02:52]} 3. d4 {[%clk 0:02:51]}  Nc6 {[%clk 0:02:49]} 4. dxc5 {[%clk 0:02:50]}  e6 {[%clk 0:02:48]} 5. c4 {[%clk 0:02:47]}  dxc4 {[%clk 0:02:47]} 6. Bxc6+ {[%clk 0:02:39]}  bxc6 {[%clk 0:02:46]} 7. Qxd8+ {[%clk 0:02:39]}  Kxd8 {[%clk 0:02:46]} 8. Be3 {[%clk 0:02:37]}  Nf6 {[%clk 0:02:43]} 9. h3 {[%clk 0:02:27]}  Ne4 {[%clk 0:02:38]} 10. Na3 {[%clk 0:02:04]}  Ba6 {[%clk 0:02:32]} 11. O-O-O+ {[%clk 0:01:57]}  Kc8 {[%clk 0:02:23]} 12. Nf3 {[%clk 0:01:54]}  f6 {[%clk 0:02:00]} 13. Nd4 {[%clk 0:01:20]}  Bxc5 {[%clk 0:01:59]} 14. Nxe6 {[%clk 0:01:01]}  Bxe3+ {[%clk 0:01:56]} 15. fxe3 {[%clk 0:01:02]}  Nf2 {[%clk 0:01:53]} 16. Nc5 {[%clk 0:00:50]}  Nxd1 {[%clk 0:01:40]} 17. Rxd1 {[%clk 0:00:49]}  Bb5 {[%clk 0:01:38]} 18. Rd7 {[%clk 0:00:41]}  c3 {[%clk 0:01:14]} 19. bxc3 {[%clk 0:00:32]}  Bxe2 {[%clk 0:01:13]} 20. Nc2 {[%clk 0:00:29]}  Rd8 {[%clk 0:01:08]} 21. Rxg7 {[%clk 0:00:28]}  Rd1+ {[%clk 0:01:03]} 22. Kb2 {[%clk 0:00:28]}  Rb8+ {[%clk 0:01:03]} 23. Ka3 {[%clk 0:00:22]}  Rb5 {[%clk 0:00:57]} 24. Nb3 {[%clk 0:00:14]}  Bc4 {[%clk 0:00:47]} 25. Ncd4 {[%clk 0:00:12]}  Rb6 {[%clk 0:00:40]} 26. Rxh7 {[%clk 0:00:09]}  Rb1 {[%clk 0:00:23]} 27. h4 {[%clk 0:00:09]}  c5 {[%clk 0:00:21]} 28. Nxc5 {[%clk 0:00:08]}  R1b2 {[%clk 0:00:19]} 29. Ncb3 {[%clk 0:00:08]}  Re2 {[%clk 0:00:17]} 30. h5 {[%clk 0:00:06]}  Rxe3 {[%clk 0:00:17]} 31. h6 {[%clk 0:00:05]}  Rh3 {[%clk 0:00:17]} 32. Nf5 {[%clk 0:00:03]}  Ra6+ {[%clk 0:00:15]} 33. Kb4 {[%clk 0:00:03]}  Be6 {[%clk 0:00:15]} 34. Ne7+ {[%clk 0:00:02]}  Kd7 {[%clk 0:00:14]} 35. Ng6+ {[%clk 0:00:02]}  Kd6 {[%clk 0:00:14]} 36. Nf4 {[%clk 0:00:02]}  Rb6+ {[%clk 0:00:13]} 37. Ka5 {[%clk 0:00:02]}  Rh1 {[%clk 0:00:12]} 38. Nxe6 {[%clk 0:00:02]}  Kxe6 {[%clk 0:00:12]} 39. Nd4+ {[%clk 0:00:02]}  Ke5 {[%clk 0:00:12]} 40. Nf5 {[%clk 0:00:02]}  Kf4 {[%clk 0:00:13]} 41. Rxa7 {[%clk 0:00:02]}  Rc6 {[%clk 0:00:12]} 42. h7 {[%clk 0:00:02]}  Rxc3 {[%clk 0:00:11]} 43. a4 {[%clk 0:00:02]}  Kxg4 {[%clk 0:00:10]} 44. Nd6 {[%clk 0:00:02]}  f5 {[%clk 0:00:10]} 45. Ne8 {[%clk 0:00:02]}  f4 {[%clk 0:00:10]} 46. Nf6+ {[%clk 0:00:02]}  Kg3 {[%clk 0:00:11]} 47. Ra8 {[%clk 0:00:02]}  f3 {[%clk 0:00:11]} 48. Rg8+ {[%clk 0:00:02]}  Kf4 {[%clk 0:00:09]} 49. Nd5+ {[%clk 0:00:02]}  Ke5 {[%clk 0:00:09]} 50. Nxc3 {[%clk 0:00:03]}  f2 {[%clk 0:00:09]} 51. Rf8 {[%clk 0:00:03]}  Rxh7 {[%clk 0:00:08]} 52. Rxf2 {[%clk 0:00:03]}  Ra7+ {[%clk 0:00:08]} 53. Kb4 {[%clk 0:00:03]}  Kd4 {[%clk 0:00:08]} 54. Nb5+ {[%clk 0:00:03]} 1-0


[Site "https://www.chess.com"]

[Event "Titled Tuesday Blitz March 22 Early 2022"]
[White "Osmonbekov, Talaibek"]
[Black "Tiarks, Jann-Christian"]
[WhiteFideId "2017253"]
[BlackFideId "12951595"]
[WhiteElo "2135"]
[BlackElo "2176"]
[Result "1-0"]
[Round "11"]
[TimeControl "180+1"]
[Date "2022.03.22"]
[WhiteClock "0:02:35"]
[BlackClock "0:02:03"]

1. d4 {[%clk 0:03:00]}  d5 {[%clk 0:02:55]} 2. Nc3 {[%clk 0:03:01]}  Nf6 {[%clk 0:02:53]} 3. Bf4 {[%clk 0:03:02]}  c6 {[%clk 0:02:53]} 4. e3 {[%clk 0:03:02]}  e6 {[%clk 0:02:52]} 5. Nf3 {[%clk 0:03:02]}  Be7 {[%clk 0:02:52]} 6. Bd3 {[%clk 0:03:01]}  O-O {[%clk 0:02:52]} 7. Ne5 {[%clk 0:02:59]}  b6 {[%clk 0:02:52]} 8. g4 {[%clk 0:02:58]}  Bb7 {[%clk 0:02:50]} 9. g5 {[%clk 0:02:58]}  Nfd7 {[%clk 0:02:50]} 10. Rg1 {[%clk 0:02:55]}  Nxe5 {[%clk 0:02:48]} 11. dxe5 {[%clk 0:02:55]}  c5 {[%clk 0:02:45]} 12. Bxh7+ {[%clk 0:02:34]}  Kxh7 {[%clk 0:02:44]} 13. Qh5+ {[%clk 0:02:35]}  Kg8 {[%clk 0:02:43]} 14. Rg3 {[%clk 0:02:35]}  g6 {[%clk 0:02:03]} 15. Qh6 {[%clk 0:02:35]} 1-0


[Site "https://www.chess.com"]

[Event "Titled Tuesday Blitz March 22 Early 2022"]
[White "Pinheiro, Iung Alicio de O."]
[Black "Zemerov, Vladimir"]
[WhiteFideId "2104350"]
[BlackFideId "4111583"]
[WhiteElo "2522"]
[BlackElo "2277"]
[Result "1-0"]
[Round "11"]
[TimeControl "180+1"]
[Date "2022.03.22"]
[WhiteClock "0:00:13"]
[BlackClock "0:00:09"]

1. c4 {[%clk 0:03:00]}  e5 {[%clk 0:02:58]} 2. g3 {[%clk 0:02:59]}  Nc6 {[%clk 0:02:59]} 3. Bg2 {[%clk 0:03:00]}  f5 {[%clk 0:02:59]} 4. Nc3 {[%clk 0:02:54]}  Nf6 {[%clk 0:02:58]} 5. a3 {[%clk 0:02:54]}  d6 {[%clk 0:02:56]} 6. e3 {[%clk 0:02:51]}  Be6 {[%clk 0:02:55]} 7. Nd5 {[%clk 0:02:36]}  Bxd5 {[%clk 0:02:48]} 8. cxd5 {[%clk 0:02:36]}  Ne7 {[%clk 0:02:48]} 9. Qb3 {[%clk 0:02:36]}  Rb8 {[%clk 0:02:44]} 10. d3 {[%clk 0:02:31]}  c6 {[%clk 0:02:42]} 11. dxc6 {[%clk 0:02:29]}  bxc6 {[%clk 0:02:42]} 12. Qa2 {[%clk 0:02:24]}  d5 {[%clk 0:02:41]} 13. Nf3 {[%clk 0:02:18]}  Ng6 {[%clk 0:02:36]} 14. O-O {[%clk 0:02:16]}  Bd6 {[%clk 0:02:36]} 15. b4 {[%clk 0:02:14]}  O-O {[%clk 0:02:29]} 16. Bb2 {[%clk 0:01:58]}  Qd7 {[%clk 0:02:24]} 17. Rac1 {[%clk 0:01:57]}  Kh8 {[%clk 0:02:23]} 18. d4 {[%clk 0:01:50]}  e4 {[%clk 0:02:18]} 19. Ne5 {[%clk 0:01:50]}  Bxe5 {[%clk 0:02:17]} 20. dxe5 {[%clk 0:01:51]}  Ng4 {[%clk 0:02:18]} 21. Qa1 {[%clk 0:01:47]}  Qe6 {[%clk 0:02:14]} 22. Rc5 {[%clk 0:01:31]}  N4xe5 {[%clk 0:02:13]} 23. Rfc1 {[%clk 0:01:31]}  Rf7 {[%clk 0:02:06]} 24. Bd4 {[%clk 0:01:28]}  h6 {[%clk 0:02:03]} 25. h4 {[%clk 0:01:28]}  h5 {[%clk 0:01:57]} 26. Qc3 {[%clk 0:01:23]}  Rb6 {[%clk 0:01:45]} 27. Qc2 {[%clk 0:01:19]}  Rc7 {[%clk 0:01:28]} 28. Qe2 {[%clk 0:01:15]}  Nd3 {[%clk 0:01:19]} 29. Qxh5+ {[%clk 0:01:13]}  Kg8 {[%clk 0:01:19]} 30. Bh3 {[%clk 0:01:10]}  Rf7 {[%clk 0:01:15]} 31. Qg5 {[%clk 0:00:56]}  Nxc1 {[%clk 0:01:10]} 32. Rxc1 {[%clk 0:00:55]}  Rb8 {[%clk 0:01:09]} 33. h5 {[%clk 0:00:50]}  Ne7 {[%clk 0:01:02]} 34. Rc5 {[%clk 0:00:33]}  Qh6 {[%clk 0:00:55]} 35. Qh4 {[%clk 0:00:32]}  Rb5 {[%clk 0:00:46]} 36. Rxb5 {[%clk 0:00:23]}  cxb5 {[%clk 0:00:46]} 37. Bc5 {[%clk 0:00:23]}  Qf6 {[%clk 0:00:41]} 38. Qf4 {[%clk 0:00:23]}  Nc6 {[%clk 0:00:39]} 39. Bf1 {[%clk 0:00:22]}  Kh7 {[%clk 0:00:37]} 40. Bxb5 {[%clk 0:00:21]}  Ne5 {[%clk 0:00:35]} 41. Be2 {[%clk 0:00:22]}  g5 {[%clk 0:00:29]} 42. hxg6+ {[%clk 0:00:21]}  Nxg6 {[%clk 0:00:29]} 43. Qb8 {[%clk 0:00:21]}  f4 {[%clk 0:00:26]} 44. Bd4 {[%clk 0:00:20]}  Qc6 {[%clk 0:00:24]} 45. exf4 {[%clk 0:00:18]}  Qc1+ {[%clk 0:00:23]} 46. Kg2 {[%clk 0:00:18]}  Qd2 {[%clk 0:00:23]} 47. f5 {[%clk 0:00:16]}  Qxd4 {[%clk 0:00:21]} 48. fxg6+ {[%clk 0:00:16]}  Kxg6 {[%clk 0:00:20]} 49. Qg8+ {[%clk 0:00:17]}  Rg7 {[%clk 0:00:20]} 50. Qe8+ {[%clk 0:00:17]}  Kh7 {[%clk 0:00:20]} 51. Qh5+ {[%clk 0:00:15]}  Kg8 {[%clk 0:00:19]} 52. Bg4 {[%clk 0:00:13]}  Rf7 {[%clk 0:00:18]} 53. Be6 {[%clk 0:00:11]}  Qxf2+ {[%clk 0:00:17]} 54. Kh3 {[%clk 0:00:12]}  Qf1+ {[%clk 0:00:16]} 55. Kh2 {[%clk 0:00:08]}  Qf2+ {[%clk 0:00:13]} 56. Kh3 {[%clk 0:00:09]}  Qf1+ {[%clk 0:00:12]} 57. Kh2 {[%clk 0:00:09]}  Qf2+ {[%clk 0:00:04]} 58. Kh1 {[%clk 0:00:08]}  Qf3+ {[%clk 0:00:03]} 59. Qxf3 {[%clk 0:00:07]}  exf3 {[%clk 0:00:03]} 60. Kg1 {[%clk 0:00:07]}  d4 {[%clk 0:00:03]} 61. Kf2 {[%clk 0:00:06]}  Kg7 {[%clk 0:00:03]} 62. Bxf7 {[%clk 0:00:06]}  Kxf7 {[%clk 0:00:03]} 63. Kxf3 {[%clk 0:00:07]}  Ke6 {[%clk 0:00:04]} 64. Ke4 {[%clk 0:00:07]}  Kd6 {[%clk 0:00:04]} 65. Kxd4 {[%clk 0:00:08]}  Ke6 {[%clk 0:00:04]} 66. g4 {[%clk 0:00:08]}  Kf6 {[%clk 0:00:04]} 67. Kc5 {[%clk 0:00:08]}  Kg5 {[%clk 0:00:05]} 68. Kb5 {[%clk 0:00:09]}  Kxg4 {[%clk 0:00:06]} 69. Ka6 {[%clk 0:00:10]}  Kf4 {[%clk 0:00:06]} 70. Kxa7 {[%clk 0:00:10]}  Ke5 {[%clk 0:00:07]} 71. b5 {[%clk 0:00:11]}  Kd6 {[%clk 0:00:08]} 72. a4 {[%clk 0:00:12]}  Kc5 {[%clk 0:00:09]} 73. b6 {[%clk 0:00:12]}  Kc6 {[%clk 0:00:09]} 74. a5 {[%clk 0:00:12]}  Kd7 {[%clk 0:00:09]} 75. a6 {[%clk 0:00:13]} 1-0


[Site "https://www.chess.com"]